Cogmind - Beta 11 X6 @@@ ROGUE MODE // 2021.08.07 @ 22:37:21 Player: Olga Result: Destroyed by Y-45 Defender with Heavy Assault Rifle Performance ------------- Evolutions (2) 1000 Regions Visited (7) 1400 Robots Destroyed (16) 80 Value Destroyed (605) 605 Prototype IDs (29) 580 Alien Tech Used (0) 0 Bonus (300) 300 TOTAL SCORE: 3965 Bonus ------- Aligned with FarCom 300 Cogmind --------- Core Integrity 0/550 Matter 457/500 Energy 100/100 System Corruption 0% Temperature Cool (9) Movement Core (100) Ox1 Location -8/Materials Parts ------- > --- POWER (1) -------- (None) > --- PROPULSION (4) --- (None) > --- UTILITY (4) ------ High-capacity Matter Pod > --- WEAPON (2) ------- (None) > --- INVENTORY (5) ---- Large Storage Unit High-powered Shotgun Peak State ------------ > --- POWER ------------ Deuterium Engine > --- PROPULSION ------- Wheel Wheel Wheel Wheel > --- UTILITY ---------- Large Storage Unit Improved Sensor Array 0b10 Alert Chip Hardened Medium Armor Plating > --- WEAPON ----------- Assault Rifle Assault Rifle > --- INVENTORY -------- Light Ion Engine Light Ion Engine High-capacity Matter Pod Improved Signal Interpreter Beam Cannon Flak Cannon [Rating: 23] Favorites ----------- Power Ion Engine Engine Ion Engine Power Core Light Nuclear Core Propulsion Wheel Leg Aluminum Leg Wheel Wheel Hover Unit Hover Unit Utility High-capacity Matter Pod Device Improved Sensor Array Storage High-capacity Matter Pod Processor 0b10 Alert Chip Protection Hardened Medium Armor Plating Weapon Assault Rifle Energy Cannon Beam Cannon Ballistic Gun Assault Rifle Ballistic Cannon Flak Cannon Launcher Mini Grenade Launcher Build | -11 -10 -10 -9 -9 -9 -8 -8 ------- Run | Scr Mat Min Mat Min Exi Min Mat Slots Evolved 4 | . . . 2 . . . 2 Power . | . . . . . . . . Propulsion 2 | . . . 2 . . . . Utility 2 | . . . . . . . 2 Weapon . | . . . . . . . . Parts Attached 45 | . 7 . 4 15 1 . 18 Power 8 | . 1 . 1 1 . . 5 Engine 7 | . 1 . 1 1 . . 4 Core 1 | . . . . . . . 1 Reactor . | . . . . . . . . Propulsion 14 | . 3 . 3 4 . . 4 Treads . | . . . . . . . . Leg 8 | . 3 . 1 . . . 4 Wheel 4 | . . . . 4 . . . Hover 2 | . . . 2 . . . . Flight . | . . . . . . . . Utility 8 | . 1 . . 2 1 . 4 Device 2 | . . . . 1 . . 1 Storage 3 | . 1 . . . 1 . 1 Processor 2 | . . . . . . . 2 Hackware . | . . . . . . . . Protection 1 | . . . . 1 . . . Artifact . | . . . . . . . . Weapon 15 | . 2 . . 8 . . 5 Energy Gun . | . . . . . . . . Energy Cannon 1 | . . . . . . . 1 Ballistic Gun 8 | . 2 . . 5 . . 1 Ballistic Cannon 3 | . . . . . . . 3 Launcher 3 | . . . . 3 . . . Special Weapon . | . . . . . . . . Impact Weapon . | . . . . . . . . Slashing Weapon . | . . . . . . . . Piercing Weapon . | . . . . . . . . Special Melee Weapon . | . . . . . . . . Unidentified Prototypes 1 | . 1 . . . . . . Parts Lost 28 | . . . 1 11 . . 16 Power 5 | . . . . 1 . . 4 Propulsion 12 | . . . 1 4 . . 7 Utility 3 | . . . . 1 . . 2 Weapon 8 | . . . . 5 . . 3 Highest Loss Streak 8 | . . . 1 5 . . 8 Average Slot Usage (%) 82 | . 96 100 87 73 100 100 64 Engine 9 | . 13 14 11 9 11 11 4 Leg 11 | . 27 28 20 3 . . 1 Wheel 13 | . . . . 20 44 44 15 Hover 2 | . . . 10 3 . . . Device 2 | . . . . 4 9 . 3 Storage 14 | . 25 28 22 6 1 11 9 Processor 3 | . . . . . . . 11 Protection 3 | . . . . 5 11 11 4 Ballistic Gun 18 | . 28 28 22 16 22 22 8 Naked Turns . | . . . . . . . . Heaviest Build 42 | 13 18 18 20 20 35 35 42 Greatest Support 40 | 20 20 20 23 40 40 40 40 Greatest Overweight (x) 9 | . 1 . 2 5 . . 9 Average Overweight (x) . | . . . . . . . 1 Largest Inventory Capacity 15 | . 8 8 8 8 15 15 15 Average Capacity 8 | . 8 8 8 6 6 15 11 Most Carried 8 | . 8 8 8 8 5 5 7 Average Carried 5 | . 7 7 8 4 3 5 3 Final Capacity 15 | 8 8 8 8 5 15 15 5 Final Carried 8 | 6 8 8 8 3 5 5 2 Class Distribution -------------------- 56% | Mutant 34% | Scavenger-Mutant 9% | Scavenger-Skirmisher Dominant Class ---------------- Mutant | -10/Materials Mutant | -10/Mines Scavenger-Mutant | -9/Materials Scavenger-Mutant | -9/Mines Scavenger-Mutant | -9/Exiles Scavenger-Mutant | -8/Mines Mutant | -8/Materials Resources | -11 -10 -10 -9 -9 -9 -8 -8 ----------- Run | Scr Mat Min Mat Min Exi Min Mat Matter Collected 1299 | 200 41 63 152 266 . . 577 Remotely . | . . . . . . . . Salvage Created 671 | . 41 . 133 68 . . 429 Parts 31 | . 2 . 9 . . . 20 Haulers Intercepted . | . . . . . . . . Recyclers Shooed 4 | . . . . 2 . . 2 Parts Field Recycled . | . . . . . . . . Retrieved Matter . | . . . . . . . . Parts Self-Destructed . | . . . . . . . . Prevented . | . . . . . . . . Kills | -11 -10 -10 -9 -9 -9 -8 -8 ------- Run | Scr Mat Min Mat Min Exi Min Mat Combat Hostiles Destroyed 27 | . 1 . 2 12 . . 12 Guns 11 | . 1 . 2 4 . . 4 Cannons 8 | . . . . . . . 8 AOE 8 | . . . . 8 . . . Classes Destroyed 6 | . 1 . 3 1 . . 1 Watcher 1 | . . . 1 . . . . Swarmer 3 | . . . . . . . 3 Grunt 10 | . 1 . . . . . 9 Duelist 1 | . . . 1 . . . . Sentry 1 | . . . 1 . . . . Assembled 12 | . . . . 12 . . . Best Kill Streak 6 | . 1 . 3 6 . . 4 Combat Bots Only 6 | . 1 . 2 6 . . 4 Max Kills in Single Turn 1 | . 1 . 1 1 . . 1 Gunslinging . | . . . . . . . . Exploded 1 | . . . . 1 . . . Melee . | . . . . . . . . Uniques/NPCs Destroyed . | . . . . . . . . Combat | -11 -10 -10 -9 -9 -9 -8 -8 -------- Run | Scr Mat Min Mat Min Exi Min Mat Damage Taken 3490 | . 107 34 284 1288 . . 1777 Core 965 | . 11 . 42 352 . . 560 Absorbed by Shields . | . . . . . . . . Core Remaining (%) 65 | 100 . 95 . . . 1 . Volleys Fired 124 | . 13 . 11 38 . . 62 Largest 2 | . 2 . 2 2 . . 2 Hottest 104 | . 43 . 43 53 . . 104 Shots Fired 223 | . 26 . 22 62 . . 113 Gun 161 | . 26 . 22 47 . . 66 Cannon 47 | . . . . . . . 47 Launcher 15 | . . . . 15 . . . Special . | . . . . . . . . Kinetic 172 | . 26 . 22 47 . . 77 Thermal 36 | . . . . . . . 36 Explosive 15 | . . . . 15 . . . Electromagnetic . | . . . . . . . . Robot Hit Streak 13 | . 4 . 13 7 . . 9 Robot Miss Streak 4 | . 1 . 1 2 . . 4 Penetration Max . | . . . . . . . . Secondary Targets 1 | . . . . 1 . . . Max Gunslinging Chain 1 | . . . . 1 . . . Shots Hit Robots 129 | . 10 . 19 20 . . 80 Core Hits 70 | . 2 . 6 29 . . 33 Critical Kills 1 | . . . . . . . 1 Critical Parts Destroyed 1 | . . . . 1 . . . Critical Strikes 2 | . . . . 1 . . 1 Destroy 2 | . . . . 1 . . 1 Melee Attacks . | . . . . . . . . Impact . | . . . . . . . . Slashing . | . . . . . . . . Piercing . | . . . . . . . . Sneak Attacks . | . . . . . . . . Combat Hostiles . | . . . . . . . . Follow-up Attacks . | . . . . . . . . Damage Inflicted 2287 | . 111 . 221 665 . . 1290 Guns 1162 | . 111 . 221 287 . . 543 Cannons 728 | . . . . . . . 728 Explosions 378 | . . . . 378 . . . Melee . | . . . . . . . . Ramming 19 | . . . . . . . 19 Kinetic 1418 | . 111 . 221 287 . . 799 Thermal 472 | . . . . . . . 472 Explosive 378 | . . . . 378 . . . Electromagnetic . | . . . . . . . . Impact . | . . . . . . . . Slashing . | . . . . . . . . Piercing . | . . . . . . . . Highest Corruption 9 | . . . . 9 9 9 . Average Corruption 8 | . . . . 8 9 9 . Corruption Purged . | . . . . . . . . Effects 16 | . . . . 7 8 1 . Message Errors 3 | . . . . 1 2 . . Matter Fused 5 | . . . . 2 2 1 . Heat Flow Errors 2 | . . . . 1 1 . . Data Loss (minor) 4 | . . . . 2 2 . . Data Loss (major) 1 | . . . . . 1 . . Misfires 1 | . . . . 1 . . . Overload Shots . | . . . . . . . . Overflow Damage . | . . . . . . . . Projectiles . | . . . . . . . . Explosions . | . . . . . . . . Melee . | . . . . . . . . Knockbacks 13 | . . . . . . . 13 Impact . | . . . . . . . . Kinetic 10 | . . . . . . . 10 Secondary 3 | . . . . . . . 3 Self-Inflicted Damage 54 | . . . . 46 . . 8 Shots 1 | . . . . 1 . . . Rammed 3 | . . . . . . . 3 Targets Rammed 7 | . . . . 1 . . 6 Kicked 4 | . . . . 1 . . 3 Crushed . | . . . . . . . . Highest Temperature 311 | . 16 . 25 270 220 . 311 Average Temperature 85 | . 4 . 24 78 112 . 101 Received Heat Transfer 939 | . 48 18 45 . . . 828 Effects 2 | . . . . . . . 2 Interference 2 | . . . . . . . 2 Siege Activations . | . . . . . . . . Robots Corrupted . | . . . . . . . . Combat Hostiles . | . . . . . . . . Parts Fried . | . . . . . . . . Impact Corruptions . | . . . . . . . . Robots Melted . | . . . . . . . . Combat Hostiles . | . . . . . . . . Parts Melted . | . . . . . . . . Heat Transferred 999 | . . . . . . . 999 Parts Sabotaged . | . . . . . . . . Parts Stolen . | . . . . . . . . Parts Stripped . | . . . . . . . . Power Chain Reactions . | . . . . . . . . Missiles Intercepted . | . . . . . . . . Alert | -11 -10 -10 -9 -9 -9 -8 -8 ------- Run | Scr Mat Min Mat Min Exi Min Mat Peak Influence 268 | . 77 1 152 73 . . 268 Initial 58 | . . 1 . 58 . . . Average 59 | . 26 1 80 15 . . 113 Maximum Alert Level 1 | . . . . . . . 1 Low Security (%) 91 | . 100 100 100 100 . 100 72 Level 1 8 | . . . . . . . 27 Level 2 . | . . . . . . . . Level 3 . | . . . . . . . . Level 4 . | . . . . . . . . Level 5 . | . . . . . . . . High Security . | . . . . . . . . Max Security . | . . . . . . . . Squads Dispatched 5 | . 1 1 . . . . 3 Investigation 1 | . . 1 . . . . . Extermination . | . . . . . . . . Reinforcement 4 | . 1 . . . . . 3 Assault . | . . . . . . . . Garrison . | . . . . . . . . Intercept . | . . . . . . . . Construction Impeded . | . . . . . . . . Haulers Reinforced . | . . . . . . . . Active Scanning Responses . | . . . . . . . . Cargo Convoy Interrupts . | . . . . . . . . Stealth | -11 -10 -10 -9 -9 -9 -8 -8 --------- Run | Scr Mat Min Mat Min Exi Min Mat Distress Signals 12 | . 1 . 2 . . . 9 Communications Jammed . | . . . . . . . . Distress Signals . | . . . . . . . . Times Spotted 75 | . 3 2 11 22 . . 37 Peak Tracking Total 11 | . 5 1 5 9 . . 11 Tactical Retreats 8 | . 1 . 1 2 . . 4 Traps | -11 -10 -10 -9 -9 -9 -8 -8 ------- Run | Scr Mat Min Mat Min Exi Min Mat Traps Triggered 5 | . 3 . . . . . 2 Indirectly . | . . . . . . . . Trap Hack Attempts . | . . . . . . . . Triggered . | . . . . . . . . Disarmed 1 | . 1 . . . . . . Reprogrammed . | . . . . . . . . Reused . | . . . . . . . . Traps Extracted . | . . . . . . . . Installed . | . . . . . . . . Triggered . | . . . . . . . . Machines | -11 -10 -10 -9 -9 -9 -8 -8 ---------- Run | Scr Mat Min Mat Min Exi Min Mat Machines Disabled 1 | . . . . . . . 1 Max in Single Turn 1 | . . . . . . . 1 Machines Sabotaged . | . . . . . . . . Garrisons Compromised . | . . . . . . . . Overloaded Fab Kills . | . . . . . . . . Fab Network Shutdowns . | . . . . . . . . Hacking | -11 -10 -10 -9 -9 -9 -8 -8 --------- Run | Scr Mat Min Mat Min Exi Min Mat Machines Accessed 13 | . 5 1 4 . 1 . 2 Terminals 11 | . 5 . 4 . . . 2 Fabricators . | . . . . . . . . Repair Stations . | . . . . . . . . Recycling Units . | . . . . . . . . Scanalyzers . | . . . . . . . . Garrison Access . | . . . . . . . . Total Hacks 37 | . 18 1 12 . 1 . 5 Successful 17 | . 8 1 4 . 1 . 3 Failed 20 | . 10 . 8 . . . 2 Catastrophic 6 | . 3 . 2 . . . 1 Database Lockouts . | . . . . . . . . Manual 30 | . 16 . 9 . 1 . 4 Terminals 35 | . 18 . 12 . . . 5 Fabricators . | . . . . . . . . Repair Stations . | . . . . . . . . Recycling Units . | . . . . . . . . Scanalyzers . | . . . . . . . . Garrison Access . | . . . . . . . . Terminal Hacks 16 | . 8 1 4 . 1 . 2 Robot Analysis 1 | . . . 1 . . . . Prototype ID Bank 3 | . 2 . 1 . . . . Open Door 1 | . . 1 . . . . . Level Access Points 1 | . . . . . . . 1 Branch Access Points 2 | . 1 . 1 . . . . Disarm Traps 1 | . 1 . . . . . . Hauler Manifests 1 | . 1 . . . . . . Registered Components 2 | . 1 . . . . . 1 Zone Layout 3 | . 2 . 1 . . . . EX-Prototype ID Bank 1 | . . . . . 1 . . Fabricator Hacks . | . . . . . . . . Repair Station Hacks . | . . . . . . . . Recycling Unit Hacks . | . . . . . . . . Scanalyzer . | . . . . . . . . Garrison Access Hacks . | . . . . . . . . Unauthorized Hacks 1 | . . . . . . . 1 Terminals 1 | . . . . . . . 1 Assimilate 1 | . . . . . . . 1 Fabricators . | . . . . . . . . Repair Stations . | . . . . . . . . Recycling Units . | . . . . . . . . Scanalyzers . | . . . . . . . . Garrison Access . | . . . . . . . . Data Cores Recovered . | . . . . . . . . Used . | . . . . . . . . Hacking Detections 10 | . 4 . 4 . . . 2 Full Trace Events . | . . . . . . . . Feedback Events . | . . . . . . . . Feedback Blocked . | . . . . . . . . Robot Schematics Acquired . | . . . . . . . . Robots Built . | . . . . . . . . Matter . | . . . . . . . . Time . | . . . . . . . . Total Robot Build Rating . | . . . . . . . . Part Schematics Acquired . | . . . . . . . . Parts Built . | . . . . . . . . Matter . | . . . . . . . . Time . | . . . . . . . . Total Part Build Rating . | . . . . . . . . Parts Repaired . | . . . . . . . . Time . | . . . . . . . . Parts Recycled . | . . . . . . . . Recycled Matter . | . . . . . . . . Retrieved Matter . | . . . . . . . . Retrieved Components . | . . . . . . . . Parts Scanalyzed . | . . . . . . . . Part Schematics Acquired . | . . . . . . . . Parts Damaged . | . . . . . . . . Bothacking | -11 -10 -10 -9 -9 -9 -8 -8 ------------ Run | Scr Mat Min Mat Min Exi Min Mat Used RIF Installer . | . . . . . . . . Robots Hacked . | . . . . . . . . Non-combat . | . . . . . . . . Combat . | . . . . . . . . Robot Hacks Applied . | . . . . . . . . Relay Couplers Released . | . . . . . . . . Robots Rewired . | . . . . . . . . Allies Hacked . | . . . . . . . . Hacks Repelled . | . . . . . . . . Allies | -11 -10 -10 -9 -9 -9 -8 -8 -------- Run | Scr Mat Min Mat Min Exi Min Mat Total Allies . | . . . . . . . . Largest Group . | . . . . . . . . Highest-Rated Group . | . . . . . . . . Highest-Rated Ally . | . . . . . . . . Total Orders . | . . . . . . . . Ally Attacks . | . . . . . . . . Total Damage . | . . . . . . . . Kills . | . . . . . . . . Allies Corrupted . | . . . . . . . . Allies Melted . | . . . . . . . . Intel | -11 -10 -10 -9 -9 -9 -8 -8 ------- Run | Scr Mat Min Mat Min Exi Min Mat Robot Analysis Total 1 | . . . 1 . . . . Derelict Logs Recovered 2 | . . . . 2 . . . Drone Launches . | . . . . . . . . Drone Recoveries . | . . . . . . . . Exploration | -11 -10 -10 -9 -9 -9 -8 -8 ------------- Run | Scr Mat Min Mat Min Exi Min Mat Turns Passed 1910 | . 418 66 317 364 198 18 529 Spaces Moved 1257 | 1 273 48 230 230 243 23 209 Core 98 | . . . . 18 . . 80 Treads . | . . . . . . . . Legs 617 | 1 273 48 224 41 . . 30 Wheels 536 | . . . . 171 243 23 99 Hover 6 | . . . 6 . . . . Flight . | . . . . . . . . Fastest Speed 80 | 120 120 120 120 80 80 80 80 Average Speed 108 | 120 120 120 120 101 80 80 119 Slowest Speed 500 | 120 200 120 200 300 80 80 500 Overloaded Moves . | . . . . . . . . Propulsion Burnouts . | . . . . . . . . Robots Hopped . | . . . . . . . . Cave-ins Triggered 1 | . . . . 1 . . . Exploration Rate (%) 29 | 1 47 14 26 46 61 14 27 Regions Visited 7 Branch Regions 4 Pre-discovered Areas 2 | . . . . 2 . . . Known Exits Taken 2 | . 1 . 1 . . . . Unknown Exits Taken 5 | 1 . 1 . 1 1 1 . Scrap Searched 1 | . . . . 1 . . . Spaces Dug 6 | . . . . 6 . . . Terrain Destroyed 99 | . . . . 99 . . . Melee . | . . . . . . . . Projectile . | . . . . . . . . AOE 99 | . . . . 99 . . . Terrain Rammed . | . . . . . . . . Walls Destroyed . | . . . . . . . . Machines Disabled . | . . . . . . . . Actions | -11 -10 -10 -9 -9 -9 -8 -8 --------- Run | Scr Mat Min Mat Min Exi Min Mat Total 1582 | . 336 57 248 301 245 22 373 Wait 114 | . 32 6 3 8 . . 65 Move 1250 | . 272 47 229 229 242 22 209 Hop . | . . . . . . . . Pick Up 29 | . 7 2 . 9 2 . 9 Fast Attach 9 | . 5 . 3 . . . 1 Attach 26 | . . . . 12 . . 14 Detach 4 | . . . . 1 . . 3 Swap 10 | . 2 . 1 3 1 . 3 Drop 9 | . 5 2 1 . . . 1 Fire 124 | . 13 . 11 38 . . 62 Melee . | . . . . . . . . Ram 3 | . . . . . . . 3 Kick 4 | . . . . 1 . . 3 Crush . | . . . . . . . . Escape Stasis . | . . . . . . . . Rewire . | . . . . . . . . Trap . | . . . . . . . . Miscellaneous . | . . . . . . . . Route ------- -11/Scrapyard -10/Materials -10/Mines -9/Materials (discovered 5 exits: *Mat / *Min x2 / *Sto x2) -9/Mines -9/Exiles -8/Mines -8/Materials (discovered 3 exits: Fac x3) History --------- Turn | Location | Event 1 | -11/Scrapyard | Discovered new exit (range 0) 1 | -11/Scrapyard | Entered Materials 60 | -10/Materials | Identified exit to Mines 302 | -10/Materials | Build established: Mutant 419 | -10/Materials | Entered Mines 443 | -10/Mines | Discovered new exit (range 5) 452 | -10/Mines | Met a Derelict shopkeep closing up shop 485 | -10/Mines | Entered Materials 485 | -9/Materials | Evolved 2 slots: Propulsion x2 569 | -9/Materials | Identified exit to Mines 569 | -9/Materials | Identified exit to Storage 684 | -9/Materials | Discovered new exit (range 16) 802 | -9/Materials | Entered Mines 808 | -9/Mines | Assembled infested the area 838 | -9/Mines | Learned 2 Materials zone layouts 893 | -9/Mines | Lost 5 parts (4n1w) 959 | -9/Mines | Core integrity fell below 50% 970 | -9/Mines | Core integrity fell below 20% 978 | -9/Mines | Crushed by falling debris 1009 | -9/Mines | Lost 5 parts (1p1u3w) 1152 | -9/Mines | Learned location of Storage (-9) 1162 | -9/Mines | Deemed a non-threat by the Exiles lab entrance 1162 | -9/Mines | Discovered new exit (range 5) 1166 | -9/Mines | Entered Exiles 1188 | -9/Exiles | Met 8R-AWN 1199 | -9/Exiles | Met EX-HEX 1221 | -9/Exiles | Met EX-BIN 1231 | -9/Exiles | Aligned with FarCom system 1231 | -9/Exiles | Given EX-Vault access code 1251 | -9/Exiles | Opened EX-Vault 1255 | -9/Exiles | Build established: Scavenger-Mutant 1258 | -9/Exiles | Found 0b10 Alert Chip 1276 | -9/Exiles | Warned to stay clear of 0b10 Research branches 1300 | -9/Exiles | Met EX-DEC 1353 | -9/Exiles | Discovered new exit (range 14) 1364 | -9/Exiles | Left Exiles lab with 0b10 Alert Chip 1364 | -9/Exiles | Entered Mines 1377 | -8/Mines | Discovered new exit (range 8) 1382 | -8/Mines | Entered Materials 1382 | -8/Materials | Evolved 2 slots: Utility x2 1503 | -8/Materials | Identified exit to Factory 1624 | -8/Materials | Lost 5 parts (3n1u1w) 1724 | -8/Materials | Core integrity fell below 50% 1746 | -8/Materials | Lost 8 parts (3p2n1u2w) 1874 | -8/Materials | Build established: Mutant 1909 | -8/Materials | Core integrity fell below 20% 1911 | -8/Materials | Destroyed by Y-45 Defender with Heavy Assault Rifle Last Messages --------------- 01892_ Acquired Imp. Aluminum Leg. 01900_ Kicked Y-45 Defender. 01902_ Critical hit (Burn: +37). 01903_ Kicked Y-45 Defender out of the way. 01903_ K-01 Serf cleans the Terminal. 01903_ Carbon-fiber Leg destroyed. 01905_ K-01 Serf destroyed. 01905_ K-01 Serf cleans the Matter Pump. 01906_ K-01 Serf collects debris. 01906_ Lgt. Ion Engine destroyed. 01906_ Knocked back. 01906_ Acquired 10 matter. 01907_ Triggered Blade Trap. 01907_ Massive razor-sharp blades shoot up from within the floor. 01907_ Flak Cannon severed. 01908_ Imp. Aluminum Leg destroyed. 01908_ Knocked back. 01910_ K-01 Serf collects debris. 01910_ Knocked back. 01911_ K-01 Serf collects debris. Map ----- +----------------------------------------------------+ | ????????????????????# # #??????????????????? | | ???????????????###### #/ """#??????????????????? | | ?????????????? """ # # """#??????????????????? | | ????????????? """"" # # """#??????????????????? | | ????????????? """"" # # """#??????????????????? | | ???????????# """"" # # """#######????????????? | | ???????????# """ / / # #????????????? | | ???????????# # # / # #????????????? | | ???????????# # # + #????????????? | | ???????????# # ####### ! #????????????? | | ???????????# ! # #?# [# #????????????? | | ???????????########## #?# ## ##???#????????? | | ????????????????????# #?# ## #??""" ???????? | | ????????????????????# #?# ## # "R" #??????? | | ????????????????????#w #?# ## + " " #??????? | | #########???????????# #?#! ## # #??????? | | # #??????????## ### ## # #??????? | | # T #??????????# ###/### #? #??????? | | # #########??# YY [#??#####??????? | | # ## #??# %^H #######???????? | | # ## !!#??# """=k!r ^ au ??????? | | # ## !!#??# w"T" ]! r ???? | | # ## #??# " " k t wsss ????? | | +! ## #??# ^^ % % m #########????? | | +### ## #??# """ #????????????? | | /###+######+###### @ """ #????????????? | | r """ #????????????? | | #????????????? | | o #????????????? | | #################+####T### #????????????? | | ##############?# ###?# #????????????? | | # """ """ #?#" #???# #????????????? | | # """ """ #?#"T #???? #????????????? | | + """ """ #?#"" #???? #????????????? | | # #?# #???? #????????????? | | # #?# #????? #????????????? | | ##############?########????? #????????????? | | ###?????????????????????????????? ???????????????? | | ?????????????????????????????????????????????????? | | ?????????????????????????????????????????????????? | | ?????????????????????????????????????????????????? | | ?????????????????????????????????????????????????? | | ?????????????????????????????????????????????????? | | ?????????????????????????????????????????????????? | | ?????????????????????????????????????????????????? | | ?????????????????????????????????????????????????? | | ?????????????????????????????????????????????????? | | ?????????????????????????????????????????????????? | | | | | +----------------------------------------------------+ Best States ------------- Heat Dissipation 31 Energy Generation 14 Energy Capacity 275 Matter Stores 483 Matter Capacity 500 Sight Range 16 Robot Scan Range 15 Terrain Scan Density 10 Armor Coverage 225 Evasion (%) 55 Item Schematics ----------------- None Robot Schematics ------------------ None Fabricated ------------ Nothing Alien Tech Used ----------------- None Achievements -------------- root@ Challenges ------------ None Game ------ Seed TractorTachyonLaser Manual? 0 Play Time 00:37:37 Cumulative 33.6 hours Start 2021.08.07 @ 20:46:46 End 2021.08.07 @ 22:37:21 Sessions 3 Manual Loads 0 Difficulty Rogue Special Mode None Game No. 47 Rogue 47 Adventurer 0 Explorer 0 Win Type - Total 0 Types 0/0/0/0/0/0/0/0/0 Lore% 24 Gallery% 32 Achievement% 22 Wizard Run 0 Options --------- ASCII 1 Keyboard 0 Movement Vi Keybinds 0 Fullscreen 2 Font 24/Smallcaps Map View 76x50 Tactical HUD 1 Map Filters NONE Filters NONE Steam 1 RUN: 19d2a59a-0c28-4425-ba6f-8bb830eafeef